Workbook

Sheet Лист1
A35: 1.4. Расчет (обоснование) страховых взносов на обязательное страхование в Пенсионный фонд Российской Федерации, Фонд социального страхования Российской Федерации, в Федеральный фонд обязательного медицинского страхования
A36: N п/п | B36: Наименование государственного внебюджетного фонда | G36: Размер базы для начисления страховых взносов, руб. | I36: Сумма взноса, руб.
A37: 1 | B37: 2 | G37: 3 | I37: 4
A38: 1 | B38: Страховые взносы в Пенсионный фонд Российской Федерации, всего | G38: X | I38: =I39 -> 1673251.54
B39: в том числе: | G39: =I19 -> 0.00 | I39: =I51/30.2*22 -> 1673251.54
B40: по ставке 22,0%
B41: по ставке 10,0%
B42: с применением пониженных тарифов взносов в Пенсионный фонд Российской Федерации для отдельных категорий плательщиков
A43: 2 | B43: Страховые взносы в Фонд социального страхования Российской Федерации, всего | G43: X | I43: =I44+I47 -> 235776.35
B44: в том числе: | G44: =G39 -> 0.00 | I44: =I51/30.2*2.9 -> 220564.98
B45: обязательное социальное страхование на случай временной нетрудоспособности и в связи с материнством по ставке 2,9%
B46: с применением ставки взносов в Фонд социального страхования Российской Федерации по ставке 0,0%
B47: обязательное социальное страхование от несчастных случаев на производстве и профессиональных заболеваний по ставке 0,2% | G47: =G44 -> 0.00 | I47: =I51/30.2*0.2 -> 15211.38
B48: обязательное социальное страхование от несчастных случаев на производстве и профессиональных заболеваний по ставке 0, ___% <*>
B49: обязательное социальное страхование от несчастных случаев на производстве и профессиональных заболеваний по ставке 0,___% <*>
A50: 3 | B50: Страховые взносы в Федеральный фонд обязательного медицинского страхования, всего (по ставке 5,1%) | G50: =G47 -> 0.00 | I50: =I51/30.2*5.1 -> 387890.13
A51: Итого: | G51: X | I51: =2293778.79+3139.2+0.03 -> 2296918.02
A53: 2. Расчеты (обоснования) расходов на социальные и иные выплаты населению
A54: Код видов расходов __112___________________________________________
A55: Источник финансового обеспечения________________________________
A56: N п/п | B56: Наименование показателя | F56: Размер одной выплаты, руб. | H56: Количество выплат в год | J56: Сумма, руб.
A57: 1 | B57: 2 | F57: 3 | H57: 4 | J57: 5
A58: 1 | B58: Выплаты льгот на ком.услуги | F58: =J58/H58 -> 1250 | H58: 12 | J58: 15000
A59: ИТОГО | F59: X | H59: X | J59: =SUM(J58) -> 15000
A61: 3. Расчеты (обоснования) расходов на уплату налогов, сборов и иных платежей
A62: Код видов расходов 851,852,853
A63: Источник финансового обеспечения_Бюджет_____________________
A65: N п/п | B65: Наименование расходов | E65: Налоговая база, руб. | G65: Ставка налога, % | I65: Сумма исчисленного налога, подлежащего уплате, руб.
A66: 1 | B66: 2 | E66: 3 | G66: 4 | I66: 5
A67: 1 | B67: Налог на имущество | E67: 999818.18 | G67: 2.2 | I67: 11908
A68: 2 | B68: Земельный налог | E68: =I68/G68*100 -> 6768474.576 | G68: 0.59 | I68: 39934
A69: 3 | B69: Экологический налог
A70: 4 | B70: Транспортный н-г
A71: Итого: | I71: =SUM(I67:J70) -> 51842
A73: 6. Расчеты (обоснования) на закупку товаров, работ, услуг
A74: Код видов расходов 221,223,225,226,340
A75: Источник финансового обеспечения_______Бюджет
A76: 6.1. Расчет (обоснование) расходов на оплату услуг связи (221)
A77: N п/п | B77: Наименование расходов | E77: Количество номеров | F77: Количество платежей в год | H77: Стоимость за единицу, руб. | J77: Сумма, руб.
A78: 1 | B78: 2 | E78: 3 | F78: 4 | H78: 5 | J78: 6
A79: 1 | B79: Абонентская плата за номер | E79: 2 | F79: 12 | H79: =J79/F79 -> 1131.08 | J79: 13572.95
A80: 2 | B80: Предоставление мест.соед | E80: 2 | F80: 12 | H80: =J80/F80 -> 0.00
A81: 3 | B81: Огранич.исход.связи | E81: 2 | F81: 12 | H81: =J81/F81 -> 0.00
B82: Итого: | E82: X | F82: X | H82: X | J82: =SUM(J79:J81) -> 13572.95
A84: 6.2. Расчет (обоснование) расходов на оплату транспортных услуг (222)
A85: N п/п | B85: Наименование расходов | E85: Количество услуг перевозки | G85: Цена услуги перевозки, руб. | I85: Сумма, руб. (гр.3 х гр.4)
A86: 1 | B86: 2 | E86: 3 | G86: 4 | I86: 5
A87: 1
A88: Итого: | I88: =I87 -> 0.00
A89: 6.3. Расчет (обоснование) расходов на оплату коммунальных услуг (223)
A90: N п/п | B90: Наименование показателя | D90: Размер потребления ресурсов | F90: Тариф (с учетом НДС), руб. | H90: Индексация, % | I90: Сумма, руб
A91: 1 | B91: 2 | D91: 3 | F91: 4 | H91: 5 | I91: 6
A92: 1 | B92: Электроснабжение | I92: 279174.00
A93: 2 | B93: Теплоснабжение | I93: 690948.96
A94: 3 | B94: Содержание в чистоте помещений | I94: 20539.41
A95: 4 | B95: Водоснабжение | I95: 12172.26
A96: Итого: | D96: X | F96: X | H96: X | I96: =SUM(I92:J95) -> 1002834.63
A97: 6.5. Расчет (обоснование) расходов на оплату работ, услуг по содержанию имущества (225)
A98: N п/п | B98: Наименование показателя | F98: Объект | H98: Количество работ (услуг) | I98: Стоимость работ (услуг), руб.
A99: 1 | B99: 2 | F99: 3 | H99: 4 | I99: 5
A100: 1 | B100: Техобслуживание охранной сигн. | F100: Школа,доу | H100: 12 | I100: 8553.84
A101: 2 | B101: Техобслуживание пожарной сигн. | F101: Школа,доу | H101: 12 | I101: =12000-1945.14 -> 10054.86
A102: 3 | B102: Дезинфекция, дератизация | F102: Школа,доу | H102: 12 | I102: =14400-1054.86 -> 13345.14
A103: 4 | B103: Техобслуживание стрельца-монит | F103: Школа,доу | H103: 12 | I103: 26400
A104: 5 | B104: Техобслуживание видеонаблюдения | F104: Школа,доу | H104: 12 | I104: 24000
A105: Итого: | F105: X | H105: X | I105: =SUM(I100:J104) -> 82353.84
A107: 6.6. Расчет (обоснование) расходов на оплату прочих работ, услуг (226)
A108: N п/п | B108: Наименование показателя | F108: Количество договоров | H108: Стоимость услуги, руб.
A109: 1 | B109: 2 | F109: 3 | H109: 4
A110: 1 | B110: Услуга вневедомственной охраны | F110: Х | H110: 40471.2
A111: 2 | B111: Производственный контроль | F111: Х | H111: 15000
A112: 3 | B112: ЭЦП | H112: 3000
A113: 4 | B113: Регистрация на биржевой площадке | H113: 1.2
A114: Итого: | F114: Х | H114: =SUM(H110:I113) -> 58472.4
A116: 6.7. Расчет (обоснование) расходов на приобретение основных средств и материальных запасов (340)
A117: N п/п | B117: Наименование расходов | F117: Количество | G117: Средняя стоимость, руб. | I117: Сумма, руб.
B118: 1 | F118: 2 | G118: 3 | I118: 4
A119: 1 | B119: Продукты питания | I119: =374067.54+43913.69 -> 417981.23
A120: 2 | B120: Приобретение моющих и канцтоваров | I120: 37725.58
A121: 3 | B121: Содержание здания | I121: =48319.15+344622.23 -> 392941.38
A122: Итого: | G122: X | I122: =SUM(I119:J121) -> 848648.19
B125: ВСЕГО | I125: =I122+H114+I105+I96+I88+J82+I71+J59+I51+I30+I19 -> 4369642.03

Sheet Лист2

Sheet Лист3
